fUSD/lending_fUSD_20260401
["ID","MTS","AMOUNT","RATE_DAILY","PERIOD"]
[419231158,1775026240486,-500.0,8.958e-05,2]
[419231159,1775026240496,-500.0,8.958e-05,2]
[419231160,1775026240505,-500.0,8.958e-05,2]
[419231161,1775026240516,-500.0,8.958e-05,2]
[419231162,1775026240526,-500.0,8.958e-05,2]
[419231163,1775026240537,-500.0,8.958e-05,2]
[419231164,1775026240548,-500.0,8.958e-05,2]
[419231165,1775026240558,-500.0,8.958e-05,2]
[419231166,1775026240568,-500.0,8.958e-05,2]
[419231167,1775026240578,-378.65530006,8.958e-05,2]
[419231168,1775026240589,-500.0,8.958e-05,2]
[419231169,1775026240600,-500.0,8.958e-05,2]
[419231170,1775026240610,-1450610.58803016,9.349e-05,2]
[419231171,1775026240621,-265.00925089,9.423e-05,2]
[419231172,1775026240630,-1941.48,9.51e-05,2]
[419231173,1775026240640,-1001.31097275,9.541e-05,2]
[419231174,1775026240649,-9999.99,9.67e-05,2]
[419231175,1775026240658,-420.0,9.843e-05,2]
[419231176,1775026240667,-1680.0,9.843e-05,2]
[419231177,1775026240678,-5000.0,9.844e-05,2]
[419231178,1775026240689,-250.0,9.844e-05,2]
[419231179,1775026240700,-300.0,9.844e-05,2]
[419231180,1775026240709,-255.0,9.844e-05,2]
[419231181,1775026240719,-213.0,9.989e-05,2]
[419231182,1775026240728,-213.0,9.989e-05,2]
[419231183,1775026240737,-155.81992637,0.0001,2]
[419231184,1775026240747,-170.24916132,0.0001,2]
[419231185,1775026240756,-175.3674248,0.0001,2]
[419231186,1775026240765,-184.67839628,0.0001,2]
[419231187,1775026240775,-615.28555707,0.0001,2]
[419231188,1775026240786,-261.42272945,0.0001,2]
[419231189,1775026240797,-158.68721202,0.0001,2]
[419231190,1775026240806,-725.36885947,0.00010029,2]
[419231191,1775026240816,-1656.77269978,0.000102,2]
[419231192,1775026240826,-1559.10536682,0.000102,2]
[419231193,1775026240836,-172.48,0.0001023,2]
[419231194,1775026240845,-10000.0,0.00010275,2]
[419231195,1775026240855,-208.87794103,0.000103,2]
[419231196,1775026240865,-191.0154,0.000103,7]
[419231197,1775026240874,-261.42272945,0.00010365,2]
[419231198,1775026240888,-940887.87803131,0.00010375,2]
[419231199,1775026240900,-3230.74116892,0.00010375,2]
[419231200,1775026240940,-1639.81824446,0.00010375,2]
[419231202,1775026241247,-306.10710901,0.0001,2]
[419231203,1775026241263,-90.60086467,0.0001,2]
[419231204,1775026241273,-6528.48183537,0.00010375,2]
[419231205,1775026241487,-476.06163605,0.00010375,2]
[419231206,1775026241497,-547713.08071994,0.00010375,2]
[419231207,1775026241506,-151.0,0.00010485,2]
[419231208,1775026241516,-587.0,0.00010827,2]
[419231209,1775026241525,-2351.0,0.00010827,2]
[419231210,1775026241534,-7037.145272,0.000109,2]
[419231211,1775026241543,-500.0,0.00010958,2]
[419231212,1775026241553,-500.0,0.00010958,3]
[419231213,1775026241563,-500.0,0.00010958,4]
[419231214,1775026241572,-500.0,0.00010958,5]
[419231215,1775026241581,-500.0,0.00010958,6]
[419231216,1775026241591,-500.0,0.00010958,7]
[419231217,1775026241601,-500.0,0.00010958,8]
[419231218,1775026241610,-500.0,0.00010958,9]
[419231219,1775026241620,-500.0,0.00010958,10]
[419231220,1775026241629,-500.0,0.00010958,11]
[419231221,1775026241639,-343.38545858,0.00010958,12]
[419231222,1775026241648,-150.0,0.00010959,2]
[419231223,1775026241657,-150.0,0.00010959,2]
[419231224,1775026241667,-1600.0,0.00011153,2]
[419231225,1775026241677,-4458.06,0.00011507,2]
[419231226,1775026241686,-243.2459,0.000118,12]
[419231227,1775026241695,-250.0,0.00011825,2]
[419231228,1775026241705,-780.0,0.0001191,2]
[419231229,1775026241715,-3292.0,0.0001191,2]
[419231230,1775026241724,-48009.51,0.00012055,2]
[419231231,1775026241733,-299.99,0.00012087,2]
[419231232,1775026241743,-9999.99,0.00012087,2]
[419231233,1775026241753,-9999.99,0.00012087,2]
[419231234,1775026241762,-150.99,0.00012087,2]
[419231235,1775026241772,-4060.56,0.00012087,2]
[419231236,1775026241782,-2496.69,0.00012087,2]
[419231237,1775026241791,-150.99,0.00012087,2]
[419231238,1775026241801,-999.99,0.00012087,2]
[419231239,1775026241810,-6335.18,0.00012087,2]
[419231240,1775026241820,-23687.92,0.00012087,2]
[419231241,1775026241829,-1600.0,0.00012547,2]
[419231242,1775026241839,-273.88,0.00012877,2]
[419231243,1775026241849,-4609.0,0.00013101,2]
[419231244,1775026241858,-505.0,0.00013111,2]
[419231245,1775026241867,-1006.64,0.00013151,2]
[419231246,1775026241877,-309.7581,0.000132,17]
[419231248,1775026241887,-3240.0,0.00013425,2]
[419231250,1775026241898,-465.005969,0.00013426,2]
[419231251,1775026241907,-500.0,0.00013698,2]
[419231252,1775026241917,-150.0,0.00013699,2]
[419231253,1775026241927,-150.0,0.00013699,2]
[419231254,1775026241937,-150.0,0.00013699,2]
[419231255,1775026241946,-2510.14,0.00013699,2]
[419231256,1775026241956,-166.66,0.00013699,2]
[419231257,1775026241965,-16362.27,0.00013699,2]
[419231258,1775026241974,-224.28659877,0.00013699,2]
[419231259,1775026241984,-358.49657185,0.00013699,2]
[419231260,1775026241993,-367.40868416,0.00013699,2]
[419231261,1775026242002,-501.8171823,0.00013699,2]
[419231262,1775026242013,-166.66,0.00013836,2]
[419231263,1775026242022,-264.95949,0.00013837,7]
[419231264,1775026242043,-1600.0,0.00013941,2]
[419231265,1775026242052,-150.0,0.00013973,2]
[419231266,1775026242061,-166.66,0.00013973,2]
[419231267,1775026242071,-211.366349,0.00014097,7]
[419231268,1775026242080,-166.66,0.0001411,2]
[419231269,1775026242090,-7037.14527199,0.0001412,2]
[419231271,1775026242100,-150.0,0.00014247,2]
[419231273,1775026242110,-166.66,0.00014247,2]
[419231275,1775026242119,-2510.14,0.00014384,2]
[419231277,1775026242129,-166.66,0.00014384,2]
[419231280,1775026242138,-6453.0,0.00014411,2]
[419231282,1775026242148,-394.4572,0.000146,22]
[419231283,1775026242157,-199.863928,0.00014777,7]
[419231284,1775026242166,-192.714759,0.00014991,7]
[419231285,1775026242176,-2510.14,0.00015068,2]
[419231286,1775026242185,-185.08673813,0.00015166,3]
[419231287,1775026242195,-1600.0,0.00015335,2]
[419231288,1775026242204,-160.0,0.00015609,2]
[419231289,1775026242214,-2510.14,0.00015753,2]
[419231290,1775026242223,-3656.0,0.00015852,2]
[419231291,1775026242233,-184.0,0.00016,2]
[419231292,1775026242242,-502.3161,0.00016,27]
[419231293,1775026242251,-315.93,0.00016116,2]
[419231294,1775026242261,-2510.14,0.00016438,2]
[419231295,1775026242270,-168.0,0.0001657,2]
[419231296,1775026242279,-505.0,0.00016631,5]
[419231297,1775026242288,-157.21,0.00016712,2]
[419231298,1775026242297,-1600.0,0.00016729,2]
[419231299,1775026242306,-639.6674,0.000175,32]
[419231300,1775026242315,-328.25,0.00017728,2]
[419231301,1775026242324,-814.5756,0.000189,37]
[419231302,1775026242333,-7037.14527199,0.00018916,2]
[419231303,1775026242343,-630.79,0.0002,30]
[419231304,1775026242352,-505.0,0.00020152,8]
[419231306,1775026242362,-2525.14,0.00020221,2]
[419231307,1775026242371,-1037.3101,0.000203,42]
[419231308,1775026242381,-501.0,0.00021,2]
[419231324,1775026242837,-1320.9481,0.000217,47]
[419231326,1775026242905,-194.80605152,0.00021832,56]
[419231328,1775026242914,-372.5,0.0002189,2]
[419231329,1775026242923,-5000.0,0.00021918,2]
[419231331,1775026242932,-483.0,0.00022,2]
[419231334,1775026242941,-765.0,0.00022,2]
[419231335,1775026242951,-2411.0,0.00022,2]
[419231337,1775026242960,-670.0,0.00022,2]
[419231339,1775026242969,-288.0,0.00022,2]
[419231340,1775026242978,-298.0,0.00022,2]
[419231342,1775026242987,-630.79,0.00022435,30]
[419231343,1775026242997,-4458.06,0.0002274,2]
[419231345,1775026243007,-483.0,0.00023,2]
[419231347,1775026243016,-765.0,0.00023,2]
[419231348,1775026243026,-2411.0,0.00023,2]
[419231350,1775026243035,-670.0,0.00023,2]
[419231351,1775026243045,-288.0,0.00023,2]
[419231353,1775026243054,-298.0,0.00023,2]
[419231355,1775026243065,-1682.1431,0.000232,52]
[419231357,1775026243074,-762.0,0.00023423,10]
[419231359,1775026243084,-1935.0,0.00023423,10]
[419231361,1775026243094,-505.0,0.00023672,11]
[419231363,1775026243104,-7037.14527199,0.00023713,2]
[419231365,1775026243114,-337.43308353,0.00023974,2]
[419231368,1775026243124,-177.64472359,0.00023974,2]
[419231370,1775026243134,-483.0,0.00024,2]
[419231372,1775026243144,-765.0,0.00024,2]
[419231373,1775026243153,-2411.0,0.00024,2]
[419231374,1775026243163,-670.0,0.00024,2]
[419231375,1775026243172,-288.0,0.00024,2]
[419231376,1775026243182,-298.0,0.00024,2]
[419231377,1775026243191,-11087.57659699,0.00024259,2]
[419231378,1775026243201,-2142.1018,0.000246,57]
[419231379,1775026243210,-1000.0,0.00024658,2]
[419231380,1775026243220,-150.0,0.00024658,2]
[419231381,1775026243230,-400.0,0.0002487,2]
[419231382,1775026243240,-400.0,0.0002487,2]
[419231383,1775026243250,-630.79,0.00024871,60]
[419231384,1775026243260,-194512.290219,0.000249,2]
[419231385,1775026243269,-483.0,0.00025,2]
[419231386,1775026243279,-765.0,0.00025,2]
[419231387,1775026243289,-2411.0,0.00025,2]
[419231388,1775026243298,-670.0,0.00025,2]
[419231389,1775026243309,-288.0,0.00025,2]
[419231390,1775026243318,-298.0,0.00025,2]
[419231391,1775026243328,-150.0,0.0002589,2]
[419231392,1775026243338,-615.28555705,0.00025897,2]
[419231393,1775026243347,-483.0,0.00026,2]
[419231394,1775026243359,-765.0,0.00026,2]
[419231395,1775026243368,-2411.0,0.00026,2]
[419231396,1775026243378,-670.0,0.00026,2]
[419231397,1775026243387,-288.0,0.00026,2]
[419231398,1775026243397,-298.0,0.00026,2]
[419231399,1775026243406,-2727.8299,0.00026,62]
[419231400,1775026243415,-500.0,0.00026301,2]
[419231401,1775026243424,-1656.77269978,0.00026794,2]
[419231402,1775026243434,-1559.10536681,0.00026794,2]
[419231403,1775026243443,-492.0,0.00027,2]
[419231404,1775026243453,-784.0,0.00027,2]
[419231405,1775026243462,-2426.0,0.00027,2]
[419231406,1775026243471,-679.0,0.00027,2]
[419231407,1775026243481,-303.0,0.00027,2]
[419231408,1775026243490,-302.0,0.00027,2]
[419231409,1775026243500,-4279.14,0.00027133,2]
[419231410,1775026243510,-150.0,0.00027185,2]
[419231411,1775026243520,-505.0,0.00027193,14]
[419231412,1775026243530,-11087.57659699,0.00027246,2]
[419231413,1775026243539,-190.26994095,0.000273,30]
[419231414,1775026243549,-190.26994094,0.000273,30]
[419231415,1775026243559,-630.79,0.00027306,60]
[419231416,1775026243568,-315.46237663,0.00027397,2]
[419231417,1775026243577,-179.4904995,0.00027397,2]
[419231418,1775026243586,-3473.7171,0.000275,67]
[419231419,1775026243596,-3940.08,0.00027696,2]
[419231420,1775026243606,-160.0,0.00028,10]
[419231421,1775026243615,-33017.9749,0.00028062,2]
[419231422,1775026243625,-1000.0,0.00028062,2]
[419231423,1775026243634,-7205.09,0.00028162,2]
[419231424,1775026243643,-197.67502599,0.00028498,93]
[419231425,1775026243652,-7037.14527199,0.0002851,2]
[419231426,1775026243662,-150.0,0.00028544,2]
[419231427,1775026243671,-213.0,0.0002882,30]
[419231428,1775026243680,-4423.5569,0.000289,72]
[419231429,1775026243689,-608.18613142,0.00029041,120]
[419231430,1775026243698,-2000.0,0.000293,2]
[419231431,1775026243708,-630.79,0.00029742,60]
[419231432,1775026243717,-150.0,0.00029971,2]
[419231433,1775026243727,-363.51560483,0.0003,30]
[419231434,1775026243737,-1004.85,0.0003,30]
[419231435,1775026243747,-233.5,0.000301,120]
[419231436,1775026243757,-250.03,0.000301,120]
[419231437,1775026243767,-200.02,0.000301,120]
[419231438,1775026243776,-150.06,0.000301,120]
[419231439,1775026243786,-150.0,0.00030136,20]
[419231440,1775026243796,-11087.57659699,0.00030233,2]
[419231441,1775026243805,-5633.1173,0.000304,77]
[419231443,1775026243815,-346.97,0.00030411,120]
[419231444,1775026243824,-1004.85,0.00030536,30]
[419231445,1775026243834,-505.0,0.00030713,17]
[419231446,1775026243843,-213.0,0.0003084,30]
[419231447,1775026243852,-1004.85,0.00031071,30]
[419231448,1775026243862,-168.26,0.00031126,2]
[419231449,1775026243871,-150.0,0.00031175,120]
[419231450,1775026243880,-2809.0,0.000314,3]
[419231451,1775026243889,-150.0,0.0003147,2]
[419231452,1775026243899,-500.0,0.00031479,2]
[419231453,1775026243908,-1004.85,0.00031607,30]
[419231454,1775026243918,-152.0,0.00031716,3]
[419231455,1775026243928,-7173.4151,0.000318,82]
[419231457,1775026243937,-167.63309835,0.00032,120]
[419231458,1775026243946,-199.91744557,0.00032,120]
[419231460,1775026243955,-169.62268548,0.00032,120]
[419231461,1775026243965,-1530.51664844,0.00032,120]
[419231462,1775026243974,-167.98282313,0.00032,120]
[419231463,1775026243984,-184.63982661,0.00032,120]
[419231464,1775026243994,-192.59859553,0.00032,120]
[419231465,1775026244004,-1004.85,0.00032143,120]
[419231466,1775026244014,-630.79,0.00032177,60]
[419231467,1775026244024,-363.51560483,0.00032222,30]
[419231468,1775026244034,-150.0,0.0003225,120]
[419231469,1775026244043,-150.0,0.0003225,120]
[419231470,1775026244053,-1571.0,0.00032359,11]
[419231471,1775026244062,-400.0,0.0003247,2]
[419231472,1775026244072,-1004.85,0.00032679,120]
[419231473,1775026244082,-2803.0,0.0003268,11]
[419231474,1775026244091,-284.09056544,0.000327,2]
[419231475,1775026244101,-284.0905653,0.000327,2]
[419231476,1775026244111,-284.0905653,0.000327,2]
[419231477,1775026244121,-284.0905653,0.000327,2]
[419231478,1775026244131,-284.0905653,0.000327,2]
[419231479,1775026244140,-284.0905653,0.000327,2]
[419231480,1775026244149,-284.0905653,0.000327,2]
[419231481,1775026244158,-284.0905653,0.000327,2]
[419231482,1775026244167,-284.0905653,0.000327,2]
[419231483,1775026244177,-284.0905653,0.000327,2]
[419231484,1775026244186,-284.0905653,0.000327,2]
[419231485,1775026244196,-284.0905653,0.000327,2]
[419231486,1775026244205,-213.0,0.0003286,30]
[419231487,1775026244215,-275.19035575,0.00032877,10]
[419231488,1775026244225,-500.0,0.00032877,120]
[419231489,1775026244235,-250.0,0.00032877,60]
[419231490,1775026244244,-250.0,0.00032877,30]
[419231491,1775026244254,-1981.80648635,0.00032877,120]
[419231492,1775026244264,-4563.84,0.000329,30]
[419231493,1775026244273,-5411.34,0.000329,30]
[419231494,1775026244282,-4988.76,0.000329,30]
[419231495,1775026244291,-34264.34,0.000329,2]
[419231496,1775026244300,-400.0,0.0003297,2]
[419231497,1775026244310,-400.0,0.0003297,2]
[419231498,1775026244319,-400.0,0.0003297,2]
[419231499,1775026244328,-400.0,0.0003297,2]
[419231500,1775026244337,-167.63309835,0.00033,120]
[419231501,1775026244347,-199.91744557,0.00033,120]
[419231502,1775026244356,-169.62268548,0.00033,120]
[419231503,1775026244366,-1530.51664844,0.00033,120]
[419231504,1775026244374,-167.98282313,0.00033,120]
[419231505,1775026244383,-184.63982661,0.00033,120]
[419231506,1775026244392,-192.59859553,0.00033,120]
[419231507,1775026244401,-2000.0,0.00033,2]
[419231508,1775026244410,-160.0,0.00033,30]
[419231509,1775026244419,-160.0,0.00033,120]
[419231510,1775026244428,-2726.79088779,0.00033038,2]
[419231511,1775026244439,-150.0,0.00033043,2]
[419231512,1775026244448,-152.0,0.00033179,4]
[419231513,1775026244458,-1004.85,0.00033214,120]
[419231514,1775026244466,-11087.57659699,0.0003322,2]
[419231515,1775026244476,-9134.886,0.000333,87]
[419231516,1775026244485,-7037.14527199,0.00033307,2]
[419231517,1775026244495,-150.0,0.00033325,120]
[419231518,1775026244505,-4563.84,0.000334,30]
[419231519,1775026244514,-5411.34,0.000334,30]
[419231520,1775026244523,-4988.76,0.000334,30]
[419231521,1775026244532,-34264.34,0.000334,2]
[419231522,1775026244540,-151.0,0.000336,5]
[419231523,1775026244549,-151.0,0.00033652,2]
[419231524,1775026244559,-1045.0,0.00033699,2]
[419231525,1775026244568,-622.761,0.00033699,2]
[419231526,1775026244579,-3519.0,0.00033699,2]
[419231527,1775026244588,-1263.0,0.00033699,2]
[419231528,1775026244598,-150.0,0.00033699,2]
[419231529,1775026244610,-415.0,0.00033699,2]
[419231530,1775026244619,-3767.0,0.00033699,2]
[419231531,1775026244628,-6016.0,0.00033699,2]
[419231532,1775026244637,-1004.85,0.0003375,120]
[419231533,1775026244647,-2809.0,0.0003375,11]
[419231534,1775026244656,-5534.0,0.000338,5]
[419231535,1775026244665,-509.656853,0.0003383,120]
[419231536,1775026244674,-199.91744557,0.000339,120]
[419231537,1775026244685,-169.62268548,0.000339,120]
[419231538,1775026244694,-1530.51664844,0.000339,120]
[419231539,1775026244704,-167.98282313,0.000339,120]
[419231540,1775026244714,-184.63982661,0.000339,120]
[419231541,1775026244724,-192.59859553,0.000339,120]
[419231542,1775026244734,-200.0,0.00033911,2]
[419231543,1775026244745,-200.0,0.00033911,2]
[419231544,1775026244755,-200.0,0.00033911,2]
[419231545,1775026244765,-200.0,0.00033911,2]
[419231546,1775026244775,-200.0,0.00033911,2]
[419231547,1775026244785,-200.0,0.00033911,2]
[419231548,1775026244796,-200.0,0.00033911,2]
[419231549,1775026244805,-200.0,0.00033911,2]
[419231550,1775026244816,-274.0,0.00033911,2]
[419231551,1775026244826,-4458.06,0.00033973,2]
[419231552,1775026244836,-200.0,0.00034,3]
[419231553,1775026244845,-160.0,0.00034,120]
[419231554,1775026244855,-4563.84,0.00034,30]
[419231555,1775026244864,-5411.34,0.00034,30]
[419231556,1775026244874,-4988.76,0.00034,30]
[419231557,1775026244884,-34264.34,0.00034,2]
[419231558,1775026244893,-1571.0,0.0003407,11]
[419231559,1775026244902,-231.0,0.00034088,2]
[419231560,1775026244911,-346.97,0.00034212,120]
[419231561,1775026244921,-505.0,0.00034234,20]
[419231562,1775026244930,-500.0,0.00034247,120]
[419231563,1775026244940,-2098.613,0.00034262,38]
[419231564,1775026244949,-1004.85,0.00034286,120]
[419231565,1775026244958,-298.0,0.00034395,30]
[419231566,1775026244967,-150.0,0.000344,120]
[419231567,1775026244976,-150.0,0.000344,120]
[419231568,1775026244986,-670.0,0.00034412,30]
[419231569,1775026244995,-288.0,0.00034412,30]
[419231570,1775026245005,-483.0,0.00034438,30]
[419231571,1775026245015,-765.0,0.00034438,30]
[419231572,1775026245025,-2411.0,0.00034438,30]
[419231573,1775026245034,-151.0,0.000346,5]
[419231574,1775026245043,-34264.34,0.000346,2]
[419231575,1775026245053,-630.79,0.00034613,90]
[419231576,1775026245063,-152.0,0.00034641,5]
[419231577,1775026245072,-150.0,0.00034696,2]
[419231578,1775026245081,-4563.84,0.000347,30]
[419231579,1775026245091,-5411.34,0.000347,30]
[419231580,1775026245101,-4988.76,0.000347,30]
[419231581,1775026245110,-11632.6939,0.000347,92]
[419231582,1775026245120,-1500.0,0.00034795,2]
[419231583,1775026245131,-1004.85,0.00034821,120]
[419231584,1775026245141,-213.0,0.0003488,30]
[419231585,1775026245151,-199.91744557,0.00035,120]
[419231586,1775026245160,-169.62268548,0.00035,120]
[419231587,1775026245170,-1530.51664844,0.00035,120]
[419231588,1775026245179,-184.63982661,0.00035,120]
[419231589,1775026245188,-192.59859553,0.00035,120]
[419231590,1775026245197,-6485.49701259,0.00035,30]
[419231591,1775026245206,-150.0,0.00035,2]
[419231592,1775026245215,-163.931,0.00035,2]
[419231593,1775026245224,-200.0,0.00035,3]
[419231594,1775026245234,-500.0,0.00035,2]
[419231595,1775026245244,-34264.34,0.000351,2]
[419231596,1775026245253,-500.0,0.00035108,120]
[419231597,1775026245263,-500.0,0.00035108,120]
[419231598,1775026245272,-500.0,0.00035108,120]
[419231599,1775026245282,-500.0,0.00035108,120]
[419231600,1775026245291,-500.0,0.00035108,120]
[419231601,1775026245301,-500.0,0.00035108,120]
[419231602,1775026245309,-500.0,0.00035108,120]
[419231603,1775026245319,-500.0,0.00035108,120]
[419231604,1775026245329,-500.0,0.00035108,120]
[419231605,1775026245338,-500.0,0.00035108,120]
[419231606,1775026245348,-500.0,0.00035108,120]
[419231607,1775026245358,-500.0,0.00035108,120]
[419231608,1775026245368,-500.0,0.00035108,120]
[419231609,1775026245378,-500.0,0.00035108,120]
[419231610,1775026245388,-500.0,0.00035108,120]
[419231611,1775026245397,-500.0,0.00035108,120]
[419231612,1775026245407,-500.0,0.00035108,120]
[419231613,1775026245417,-500.0,0.00035108,120]
[419231614,1775026245427,-500.0,0.00035108,120]
[419231615,1775026245437,-500.0,0.00035108,120]
[419231616,1775026245447,-500.0,0.00035108,120]
[419231617,1775026245458,-593.75,0.00035108,120]
[419231618,1775026245469,-500.0,0.00035108,120]
[419231619,1775026245479,-500.0,0.00035108,120]
[419231620,1775026245488,-500.0,0.00035108,120]
[419231621,1775026245497,-604.2768594,0.00035108,120]
[419231622,1775026245506,-500.0,0.00035108,120]
[419231623,1775026245515,-500.0,0.00035108,120]
[419231624,1775026245524,-962.7119454,0.00035108,120]
[419231625,1775026245533,-500.0,0.00035108,120]
[419231626,1775026245542,-500.0,0.00035108,120]
[419231627,1775026245551,-500.0,0.00035108,120]
[419231628,1775026245560,-816.7574904,0.00035108,120]
[419231629,1775026245569,-500.0,0.00035108,120]
[419231630,1775026245578,-500.0,0.00035108,120]
[419231631,1775026245587,-500.0,0.00035108,120]
[419231632,1775026245596,-500.0,0.00035108,120]
[419231633,1775026245605,-500.0,0.00035108,120]
[419231634,1775026245615,-500.0,0.00035108,120]
[419231635,1775026245624,-500.0,0.00035108,120]
[419231636,1775026245633,-500.0,0.00035108,120]
[419231637,1775026245642,-500.0,0.00035108,120]
[419231638,1775026245651,-500.0,0.00035108,120]
[419231639,1775026245660,-500.0,0.00035108,120]
[419231640,1775026245669,-500.0,0.00035108,120]
[419231641,1775026245678,-500.0,0.00035108,120]
[419231642,1775026245687,-500.0,0.00035108,120]
[419231643,1775026245696,-500.0,0.00035108,120]
[419231644,1775026245705,-500.0,0.00035108,120]
[419231646,1775026245714,-500.0,0.00035108,120]
[419231648,1775026245724,-500.0,0.00035108,120]
[419231650,1775026245732,-796.715297,0.00035108,120]
[419231651,1775026245741,-500.0,0.00035108,120]
[419231652,1775026245750,-500.0,0.00035108,120]
[419231653,1775026245759,-500.0,0.00035108,120]
[419231655,1775026245768,-500.0,0.00035108,120]
[419231656,1775026245778,-500.0,0.00035108,120]
[419231657,1775026245789,-500.0,0.00035108,120]
[419231658,1775026245799,-500.0,0.00035108,120]
[419231659,1775026245810,-500.0,0.00035108,120]
[419231660,1775026245820,-500.0,0.00035108,120]
[419231661,1775026245830,-500.0,0.00035108,120]
[419231662,1775026245839,-500.0,0.00035108,120]
[419231663,1775026245848,-500.0,0.00035108,120]
[419231664,1775026245859,-500.0,0.00035108,120]
[419231665,1775026245868,-500.0,0.00035108,120]
[419231666,1775026245878,-500.0,0.00035108,120]
[419231667,1775026245887,-4100.0,0.00035108,120]
[419231668,1775026245897,-500.0,0.00035108,120]
[419231669,1775026245906,-500.0,0.00035108,120]
[419231670,1775026245915,-500.0,0.00035108,120]
[419231671,1775026245924,-4100.0,0.00035108,120]
[419231672,1775026245933,-500.0,0.00035108,120]
[419231673,1775026245942,-500.0,0.00035108,120]
[419231674,1775026245952,-4100.0,0.00035108,120]
[419231675,1775026245961,-500.0,0.00035108,120]
[419231676,1775026245970,-500.0,0.00035108,120]
[419231677,1775026245979,-500.0,0.00035108,120]
[419231678,1775026245988,-4100.0,0.00035108,120]
[419231679,1775026245998,-500.0,0.00035108,120]
[419231680,1775026246007,-500.0,0.00035108,120]
[419231681,1775026246016,-500.0,0.00035108,120]
[419231682,1775026246027,-500.0,0.00035108,120]
[419231683,1775026246036,-4100.0,0.00035108,120]
[419231684,1775026246045,-500.0,0.00035108,120]
[419231685,1775026246054,-500.0,0.00035108,120]
[419231686,1775026246064,-500.0,0.00035108,120]
[419231687,1775026246072,-4100.0,0.00035108,120]
[419231688,1775026246082,-500.0,0.00035108,120]
[419231689,1775026246091,-500.0,0.00035108,120]
[419231690,1775026246100,-500.0,0.00035108,120]
[419231691,1775026246110,-4100.0,0.00035108,120]
[419231692,1775026246120,-500.0,0.00035108,120]
[419231693,1775026246129,-500.0,0.00035108,120]
[419231694,1775026246138,-912.3112835,0.00035108,120]
[419231695,1775026246148,-4100.0,0.00035108,120]
[419231696,1775026246158,-500.0,0.00035108,120]
[419231697,1775026246167,-500.0,0.00035108,120]
[419231698,1775026246176,-4100.0,0.00035108,120]
[419231699,1775026246185,-500.0,0.00035108,120]
[419231700,1775026246194,-500.0,0.00035108,120]
[419231701,1775026246203,-4100.0,0.00035108,120]
[419231702,1775026246212,-500.0,0.00035108,120]
[419231703,1775026246221,-500.0,0.00035108,120]
[419231704,1775026246230,-4100.0,0.00035108,120]
[419231705,1775026246239,-500.0,0.00035108,120]
[419231706,1775026246248,-500.0,0.00035108,120]
[419231707,1775026246257,-4100.0,0.00035108,120]
[419231708,1775026246266,-500.0,0.00035108,120]
[419231709,1775026246276,-500.0,0.00035108,120]
[419231710,1775026246285,-4100.0,0.00035108,120]
[419231711,1775026246295,-500.0,0.00035108,120]
[419231712,1775026246305,-500.0,0.00035108,120]